[Event "Open NK Rapid 2025 bord 26-50"]
[Site "Helmond, Netherlands"]
[Date "2025.05.03"]
[Round "7.23"]
[White "Mau-Asam, LÃ©on"]
[Black "Van Ree, Thailo"]
[Result "0-1"]
[TimeControl "15 min +5 sec increment"]
[WhiteFideId "40105890"]
[BlackFideId "40102181"]
[WhiteElo "1795"]
[BlackElo "1877"]

1. d4 {[%clk 00:15:08]} {[%emt 00:00:01]} Nf6 {[%clk 00:15:07]} {[%emt
00:00:04]} 2. c4 {[%clk 00:15:11]} {[%emt 00:00:02]} Nc6 {[%clk 00:15:10]}
{[%emt 00:00:02]} 3. Nc3 {[%clk 00:14:22]} {[%emt 00:00:54]} e5 {[%clk
00:15:12]} {[%emt 00:00:03]} 4. d5 {[%clk 00:13:37]} {[%emt 00:00:50]} Ne7
{[%clk 00:15:15]} {[%emt 00:00:02]} 5. e4 {[%clk 00:13:40]} {[%emt 00:00:02]}
Ng6 {[%clk 00:15:17]} {[%emt 00:00:03]} 6. Bd3 {[%clk 00:13:34]} {[%emt
00:00:10]} Bc5 {[%clk 00:15:18]} {[%emt 00:00:04]} 7. Nge2 {[%clk 00:12:44]}
{[%emt 00:00:56]} Ng4 {[%clk 00:15:16]} {[%emt 00:00:07]} 8. O-O {[%clk
00:12:37]} {[%emt 00:00:11]} Qh4 {[%clk 00:15:13]} {[%emt 00:00:08]} 9. h3
{[%clk 00:11:55]} {[%emt 00:00:48]} Nxf2 {[%clk 00:15:12]} {[%emt 00:00:05]} 10.
Rxf2 {[%clk 00:11:50]} {[%emt 00:00:11]} Qxf2+ {[%clk 00:14:57]} {[%emt
00:00:20]} 11. Kh2 {[%clk 00:11:22]} {[%emt 00:00:32]} Nh4 {[%clk 00:14:38]}
{[%emt 00:00:24]} 0-1

[Event "Open NK Rapid 2025 bord 26-50"]
[Site "Helmond, Netherlands"]
[Date "2025.05.03"]
[Round "7.24"]
[White "Westveer, Riny"]
[Black "Rogozyanskiy, Alexander"]
[Result "0-1"]
[TimeControl "15 min +5 sec increment"]
[WhiteFideId "1088734"]
[BlackFideId "1092138"]
[WhiteElo "1876"]
[BlackElo "1726"]

1. d4 {[%clk 00:15:08]} {[%emt 00:00:02]} Nf6 {[%clk 00:14:13]} {[%emt
00:00:57]} 2. c4 {[%clk 00:15:00]} {[%emt 00:00:12]} e6 {[%clk 00:14:09]}
{[%emt 00:00:10]} 3. Nf3 {[%clk 00:15:02]} {[%emt 00:00:03]} b6 {[%clk
00:14:12]} {[%emt 00:00:02]} 4. g3 {[%clk 00:15:06]} {[%emt 00:00:01]} Bb7
{[%clk 00:14:16]} {[%emt 00:00:02]} 5. Bg2 {[%clk 00:15:09]} Bb4+ {[%clk
00:14:19]} {[%emt 00:00:02]} 6. Bd2 {[%clk 00:15:11]} {[%emt 00:00:02]} Bxd2+
{[%clk 00:14:23]} {[%emt 00:00:02]} 7. Qxd2 {[%clk 00:15:10]} {[%emt 00:00:06]}
O-O {[%clk 00:14:26]} {[%emt 00:00:02]} 8. Nc3 {[%clk 00:15:10]} {[%emt
00:00:06]} d6 {[%clk 00:14:25]} {[%emt 00:00:05]} 9. O-O {[%clk 00:14:59]}
{[%emt 00:00:16]} Ne4 {[%clk 00:14:28]} {[%emt 00:00:01]} 10. Nxe4 {[%clk
00:13:49]} {[%emt 00:01:15]} Bxe4 {[%clk 00:14:32]} {[%emt 00:00:02]} 11. Rac1
{[%clk 00:13:18]} {[%emt 00:00:36]} Nd7 {[%clk 00:14:31]} {[%emt 00:00:06]} 12.
Rfd1 {[%clk 00:12:55]} {[%emt 00:00:28]} a5 {[%clk 00:14:11]} {[%emt 00:00:26]}
13. a3 {[%clk 00:12:27]} {[%emt 00:00:33]} a4 {[%clk 00:14:09]} {[%emt
00:00:07]} 14. Ne1 {[%clk 00:12:08]} {[%emt 00:00:23]} Bxg2 {[%clk 00:13:04]}
{[%emt 00:01:10]} 15. Kxg2 {[%clk 00:12:10]} {[%emt 00:00:03]} f5 {[%clk
00:13:07]} {[%emt 00:00:02]} 16. Nd3 {[%clk 00:11:52]} {[%emt 00:00:22]} Qf6
{[%clk 00:12:00]} {[%emt 00:01:12]} 17. Nb4 {[%clk 00:10:43]} {[%emt 00:01:15]}
g5 {[%clk 00:11:31]} {[%emt 00:00:33]} 18. e3 {[%clk 00:09:04]} {[%emt
00:01:45]} Qg6 {[%clk 00:10:35]} {[%emt 00:01:01]} 19. Rc3 {[%clk 00:07:40]}
{[%emt 00:01:29]} Nf6 {[%clk 00:10:12]} {[%emt 00:00:28]} 20. Qe2 {[%clk
00:07:05]} {[%emt 00:00:40]} Rae8 {[%clk 00:09:32]} {[%emt 00:00:46]} 21. Nc6
{[%clk 00:05:49]} {[%emt 00:01:20]} h5 {[%clk 00:08:36]} {[%emt 00:01:01]} 22.
Qc2 {[%clk 00:04:51]} {[%emt 00:01:03]} Rf7 {[%clk 00:08:00]} {[%emt 00:00:42]}
23. Qxa4 {[%clk 00:04:20]} {[%emt 00:00:36]} Rh7 {[%clk 00:07:33]} {[%emt
00:00:31]} 24. f3 {[%clk 00:02:05]} {[%emt 00:02:20]} g4 {[%clk 00:06:58]}
{[%emt 00:00:40]} 25. f4 {[%clk 00:01:52]} {[%emt 00:00:18]} h4 {[%clk
00:06:54]} {[%emt 00:00:09]} 26. Rcc1 {[%clk 00:01:35]} {[%emt 00:00:22]} Ne4
{[%clk 00:06:25]} {[%emt 00:00:34]} 27. b4 {[%clk 00:00:56]} {[%emt 00:00:44]}
Kf7 {[%clk 00:06:09]} {[%emt 00:00:22]} 28. c5 {[%clk 00:00:25]} {[%emt
00:00:36]} Reh8 {[%clk 00:05:56]} {[%emt 00:00:17]} 29. Rh1 {[%clk 00:00:27]}
{[%emt 00:00:03]} hxg3 {[%clk 00:06:00]} {[%emt 00:00:02]} 30. Ne5+ {[%clk
00:00:18]} {[%emt 00:00:14]} dxe5 {[%clk 00:05:30]} {[%emt 00:00:35]} 31. Qd7+
{[%clk 00:00:21]} Kf8 {[%clk 00:05:33]} {[%emt 00:00:01]} 32. Qd8+ {[%clk
00:00:18]} {[%emt 00:00:09]} Qe8 {[%clk 00:05:27]} {[%emt 00:00:11]} 33. Qxe8+
{[%clk 00:00:09]} {[%emt 00:00:15]} Kxe8 {[%clk 00:05:30]} {[%emt 00:00:02]} 34.
hxg3 {[%clk 00:00:10]} {[%emt 00:00:04]} Rxh1 {[%clk 00:05:16]} {[%emt
00:00:18]} 35. Rxh1 {[%clk 00:00:13]} {[%emt 00:00:02]} Rxh1 {[%clk 00:05:20]}
{[%emt 00:00:02]} 36. cxb6 {[%clk 00:00:09]} {[%emt 00:00:09]} Rh8 {[%clk
00:05:04]} {[%emt 00:00:21]} 37. b7 {[%clk 00:00:07]} {[%emt 00:00:07]} Kd7
{[%clk 00:05:08]} {[%emt 00:00:01]} 0-1

[Event "Open NK Rapid 2025 bord 26-50"]
[Site "Helmond, Netherlands"]
[Date "2025.05.03"]
[Round "7.25"]
[White "Gergin, Isafara"]
[Black "Messaoudi, Nino"]
[Result "0-1"]
[TimeControl "15 min +5 sec increment"]
[WhiteFideId "1082167"]
[BlackFideId "1099930"]
[WhiteElo "1779"]
[BlackElo "1875"]

1. e4 {[%clk 00:15:05]} {[%emt 01:02:06]} e6 {[%clk 00:15:05]} 2. d4 {[%clk
00:15:05]} d5 {[%clk 00:15:06]} {[%emt 00:00:12]} 3. Nd2 {[%clk 00:15:07]}
{[%emt 00:00:04]} c5 {[%clk 00:15:06]} {[%emt 00:00:05]} 4. exd5 {[%clk
00:15:04]} {[%emt 00:00:08]} Qxd5 {[%clk 00:15:08]} {[%emt 00:00:03]} 5. Ngf3
{[%clk 00:15:03]} {[%emt 00:00:06]} cxd4 {[%clk 00:15:07]} {[%emt 00:00:05]} 6.
Bc4 {[%clk 00:14:41]} {[%emt 00:00:27]} Qd6 {[%clk 00:15:10]} {[%emt 00:00:02]}
7. Nb3 {[%clk 00:14:36]} {[%emt 00:00:11]} Qb4+ {[%clk 00:14:27]} {[%emt
00:00:47]} 8. Nbd2 {[%clk 00:14:24]} {[%emt 00:00:17]} Nc6 {[%clk 00:14:26]}
{[%emt 00:00:07]} 9. O-O {[%clk 00:14:17]} {[%emt 00:00:12]} Nf6 {[%clk
00:14:27]} {[%emt 00:00:04]} 10. a3 {[%clk 00:14:01]} {[%emt 00:00:21]} Qb6
{[%clk 00:13:59]} {[%emt 00:00:33]} 11. Nb3 {[%clk 00:13:51]} {[%emt 00:00:14]}
a6 {[%clk 00:13:22]} {[%emt 00:00:43]} 12. Nbxd4 {[%clk 00:12:41]} {[%emt
00:01:15]} Nxd4 {[%clk 00:13:23]} {[%emt 00:00:03]} 13. Qxd4 {[%clk 00:12:33]}
{[%emt 00:00:13]} Qxd4 {[%clk 00:12:20]} {[%emt 00:01:08]} 14. Nxd4 {[%clk
00:12:36]} {[%emt 00:00:03]} Bc5 {[%clk 00:12:12]} {[%emt 00:00:12]} 15. Nf3
{[%clk 00:12:35]} {[%emt 00:00:06]} O-O {[%clk 00:12:12]} {[%emt 00:00:05]} 16.
b4 {[%clk 00:12:23]} {[%emt 00:00:18]} Ba7 {[%clk 00:12:13]} {[%emt 00:00:03]}
17. Bb2 {[%clk 00:12:24]} {[%emt 00:00:04]} b5 {[%clk 00:12:12]} {[%emt
00:00:06]} 18. Bb3 {[%clk 00:12:16]} {[%emt 00:00:14]} Bb7 {[%clk 00:12:08]}
{[%emt 00:00:09]} 19. Ne5 {[%clk 00:11:33]} {[%emt 00:00:48]} Rac8 {[%clk
00:11:58]} {[%emt 00:00:14]} 20. Rac1 {[%clk 00:11:34]} {[%emt 00:00:04]} h6
{[%clk 00:11:35]} {[%emt 00:00:28]} 21. c4 {[%clk 00:11:10]} {[%emt 00:00:29]}
bxc4 {[%clk 00:11:32]} {[%emt 00:00:09]} 22. Bxc4 {[%clk 00:10:58]} {[%emt
00:00:17]} Rfd8 {[%clk 00:11:09]} {[%emt 00:00:26]} 23. Rcd1 {[%clk 00:09:42]}
{[%emt 00:01:23]} Ne4 {[%clk 00:10:21]} {[%emt 00:00:52]} 24. Bd3 {[%clk
00:07:36]} {[%emt 00:02:12]} f6 {[%clk 00:09:13]} {[%emt 00:01:12]} 25. Ng6
{[%clk 00:06:45]} {[%emt 00:00:57]} Kf7 {[%clk 00:09:06]} {[%emt 00:00:12]} 26.
Nf4 {[%clk 00:06:41]} {[%emt 00:00:09]} e5 {[%clk 00:07:41]} {[%emt 00:01:30]}
27. Nh3 {[%clk 00:06:41]} {[%emt 00:00:05]} g5 {[%clk 00:06:52]} {[%emt
00:00:54]} 28. Bxe4 {[%clk 00:05:05]} {[%emt 00:01:40]} Bxe4 {[%clk 00:06:49]}
{[%emt 00:00:08]} 29. Rxd8 {[%clk 00:04:48]} {[%emt 00:00:22]} Rxd8 {[%clk
00:06:53]} {[%emt 00:00:01]} 30. Kh1 {[%clk 00:04:38]} {[%emt 00:00:16]} Rd2
{[%clk 00:05:54]} {[%emt 00:01:04]} 31. f3 {[%clk 00:03:28]} {[%emt 00:01:14]}
Bd3 {[%clk 00:04:51]} {[%emt 00:01:09]} 32. Rc1 {[%clk 00:03:04]} {[%emt
00:00:29]} Kg6 {[%clk 00:03:47]} {[%emt 00:01:08]} 33. Bc3 {[%clk 00:02:55]}
{[%emt 00:00:15]} Ra2 {[%clk 00:03:32]} {[%emt 00:00:20]} 34. g3 {[%clk
00:02:17]} {[%emt 00:00:42]} Rxa3 {[%clk 00:03:17]} {[%emt 00:00:21]} 35. Bxe5
{[%clk 00:01:40]} {[%emt 00:00:41]} Be2 {[%clk 00:02:31]} {[%emt 00:00:50]} 36.
Ng1 {[%clk 00:01:24]} {[%emt 00:00:22]} Bxg1 {[%clk 00:02:20]} {[%emt
00:00:16]} 37. Kxg1 {[%clk 00:00:56]} {[%emt 00:00:33]} fxe5 {[%clk 00:02:22]}
{[%emt 00:00:04]} 38. Rc6+ {[%clk 00:00:51]} {[%emt 00:00:10]} Kf5 {[%clk
00:02:19]} {[%emt 00:00:08]} 39. Rxh6 {[%clk 00:00:50]} {[%emt 00:00:06]} Bxf3
{[%clk 00:02:09]} {[%emt 00:00:15]} 0-1

[Event "Open NK Rapid 2025 bord 26-50"]
[Site "Helmond, Netherlands"]
[Date "2025.05.03"]
[Round "8.1"]
[White "Rogozyanskiy, Alexander"]
[Black "Uddin, Ahnaf Tajwar"]
[Result "0-1"]
[TimeControl "15 min +5 sec increment"]
[WhiteFideId "1092138"]
[BlackFideId "1050842"]
[WhiteElo "1726"]
[BlackElo "2081"]

1. e4 {[%clk 00:15:08]} {[%emt 00:00:02]} b6 {[%clk 00:15:10]} {[%emt
00:00:01]} 2. d4 {[%clk 00:15:12]} Bb7 {[%clk 00:15:14]} {[%emt 00:00:01]} 3.
Nc3 {[%clk 00:15:15]} {[%emt 00:00:01]} e6 {[%clk 00:15:18]} {[%emt 00:00:01]}
4. a3 {[%clk 00:15:14]} {[%emt 00:00:06]} Nf6 {[%clk 00:15:20]} {[%emt
00:00:03]} 5. Bd3 {[%clk 00:15:15]} {[%emt 00:00:04]} d5 {[%clk 00:15:23]}
{[%emt 00:00:02]} 6. e5 {[%clk 00:13:42]} {[%emt 00:01:38]} Ng8 {[%clk
00:15:26]} {[%emt 00:00:02]} 7. Nce2 {[%clk 00:13:40]} {[%emt 00:00:06]} c5
{[%clk 00:15:29]} {[%emt 00:00:03]} 8. c3 {[%clk 00:13:44]} {[%emt 00:00:01]}
c4 {[%clk 00:15:32]} {[%emt 00:00:02]} 9. Bc2 {[%clk 00:13:45]} {[%emt
00:00:03]} b5 {[%clk 00:15:34]} {[%emt 00:00:04]} 10. f4 {[%clk 00:13:44]}
{[%emt 00:00:06]} g6 {[%clk 00:15:37]} {[%emt 00:00:02]} 11. Be3 {[%clk
00:12:30]} {[%emt 00:01:19]} h5 {[%clk 00:15:40]} {[%emt 00:00:02]} 12. Nf3
{[%clk 00:11:17]} {[%emt 00:01:18]} Nc6 {[%clk 00:15:41]} {[%emt 00:00:04]} 13.
Ng5 {[%clk 00:11:08]} {[%emt 00:00:13]} Nh6 {[%clk 00:15:44]} {[%emt 00:00:02]}
14. Ng1 {[%clk 00:09:51]} {[%emt 00:01:23]} Be7 {[%clk 00:15:36]} {[%emt
00:00:14]} 15. N1f3 {[%clk 00:09:47]} {[%emt 00:00:08]} Nf5 {[%clk 00:15:36]}
{[%emt 00:00:05]} 16. Qe2 {[%clk 00:09:00]} {[%emt 00:00:51]} a5 {[%clk
00:15:38]} {[%emt 00:00:04]} 17. O-O {[%clk 00:08:15]} {[%emt 00:00:50]} b4
{[%clk 00:15:37]} {[%emt 00:00:06]} 18. axb4 {[%clk 00:07:48]} {[%emt
00:00:32]} axb4 {[%clk 00:15:41]} {[%emt 00:00:02]} 19. Bxf5 {[%clk 00:07:45]}
{[%emt 00:00:07]} gxf5 {[%clk 00:15:44]} {[%emt 00:00:02]} 20. Bf2 {[%clk
00:07:05]} {[%emt 00:00:44]} Na5 {[%clk 00:15:39]} {[%emt 00:00:11]} 21. Bh4
{[%clk 00:06:33]} {[%emt 00:00:37]} Nb3 {[%clk 00:15:38]} {[%emt 00:00:06]} 22.
Rxa8 {[%clk 00:06:28]} {[%emt 00:00:10]} Qxa8 {[%clk 00:15:42]} {[%emt
00:00:01]} 23. cxb4 {[%clk 00:06:31]} {[%emt 00:00:02]} Bxb4 {[%clk 00:15:39]}
{[%emt 00:00:08]} 24. Be1 {[%clk 00:06:20]} {[%emt 00:00:16]} Qa5 {[%clk
00:15:28]} {[%emt 00:00:17]} 25. Bxb4 {[%clk 00:05:23]} {[%emt 00:01:02]} Qxb4
{[%clk 00:15:31]} {[%emt 00:00:01]} 26. Qd1 {[%clk 00:05:27]} {[%emt 00:00:01]}
Ke7 {[%clk 00:15:25]} {[%emt 00:00:11]} 27. Qe1 {[%clk 00:04:55]} {[%emt
00:00:37]} Qxe1 {[%clk 00:15:12]} {[%emt 00:00:18]} 28. Rxe1 {[%clk 00:04:58]}
{[%emt 00:00:02]} Ra8 {[%clk 00:15:15]} {[%emt 00:00:03]} 29. Nh7 {[%clk
00:04:50]} {[%emt 00:00:12]} Ra2 {[%clk 00:15:11]} {[%emt 00:00:09]} 30. Rb1
{[%clk 00:04:50]} {[%emt 00:00:05]} Bc6 {[%clk 00:14:50]} {[%emt 00:00:26]} 31.
g3 {[%clk 00:03:47]} {[%emt 00:01:08]} Ba4 {[%clk 00:14:52]} {[%emt 00:00:02]}
32. Nf6 {[%clk 00:03:51]} {[%emt 00:00:02]} Na1 {[%clk 00:14:54]} {[%emt
00:00:02]} 33. Nxh5 {[%clk 00:02:37]} {[%emt 00:01:20]} Bc2 {[%clk 00:14:58]}
34. Rc1 {[%clk 00:02:34]} {[%emt 00:00:07]} Be4 {[%clk 00:15:01]} {[%emt
00:00:03]} 35. Nd2 {[%clk 00:02:18]} {[%emt 00:00:21]} Nb3 {[%clk 00:14:50]}
{[%emt 00:00:16]} 36. Nxb3 {[%clk 00:01:35]} {[%emt 00:00:48]} cxb3 {[%clk
00:14:54]} {[%emt 00:00:01]} 37. h4 {[%clk 00:01:38]} {[%emt 00:00:03]} Rxb2
{[%clk 00:14:57]} {[%emt 00:00:02]} 38. Rc7+ {[%clk 00:00:34]} {[%emt
00:01:08]} Kd8 {[%clk 00:15:00]} {[%emt 00:00:01]} 39. Rxf7 {[%clk 00:00:38]}
{[%emt 00:00:02]} Rg2+ {[%clk 00:14:57]} {[%emt 00:00:09]} 40. Kf1 {[%clk
00:00:42]} b2 {[%clk 00:14:59]} {[%emt 00:00:03]} 41. Rb7 {[%clk 00:00:44]}
{[%emt 00:00:03]} Rh2 {[%clk 00:14:53]} {[%emt 00:00:11]} 42. Ng7 {[%clk
00:00:36]} {[%emt 00:00:12]} b1=Q+ {[%clk 00:14:08]} {[%emt 00:00:51]} 43. Rxb1
{[%clk 00:00:40]} {[%emt 00:00:01]} Bxb1 {[%clk 00:14:12]} {[%emt 00:00:01]} 44.
Nxe6+ {[%clk 00:00:41]} {[%emt 00:00:04]} Ke7 {[%clk 00:14:15]} {[%emt
00:00:01]} 45. Ng5 {[%clk 00:00:12]} {[%emt 00:00:35]} Be4 {[%clk 00:14:18]}
{[%emt 00:00:02]} 46. Nxe4 {[%clk 00:00:13]} {[%emt 00:00:04]} dxe4 {[%clk
00:14:21]} {[%emt 00:00:02]} 47. d5 {[%clk 00:00:15]} {[%emt 00:00:03]} e3
{[%clk 00:14:16]} {[%emt 00:00:10]} 48. h5 {[%clk 00:00:09]} {[%emt 00:00:11]}
Rxh5 {[%clk 00:14:09]} {[%emt 00:00:11]} 49. Ke2 {[%clk 00:00:10]} {[%emt
00:00:05]} Rh3 {[%clk 00:14:12]} {[%emt 00:00:02]} 50. Kxe3 {[%clk 00:00:08]}
{[%emt 00:00:06]} Rxg3+ {[%clk 00:14:16]} {[%emt 00:00:02]} 51. Kf2 {[%clk
00:00:07]} {[%emt 00:00:06]} Ra3 {[%clk 00:14:18]} {[%emt 00:00:03]} 52. Ke2
{[%clk 00:00:07]} {[%emt 00:00:05]} Ra5 {[%clk 00:14:19]} {[%emt 00:00:04]} 53.
d6+ {[%clk 00:00:11]} {[%emt 00:00:01]} Ke6 {[%clk 00:14:23]} {[%emt 00:00:02]}
54. Ke3 {[%clk 00:00:15]} Ra4 {[%clk 00:14:21]} {[%emt 00:00:08]} 55. Kf3
{[%clk 00:00:18]} Ra7 {[%clk 00:14:19]} {[%emt 00:00:06]} 56. Ke3 {[%clk
00:00:12]} {[%emt 00:00:12]} Kd5 {[%clk 00:14:23]} {[%emt 00:00:01]} 57. Kd3
{[%clk 00:00:09]} {[%emt 00:00:09]} Ra3+ {[%clk 00:14:17]} {[%emt 00:00:11]} 58.
Ke2 {[%clk 00:00:13]} Rb3 {[%clk 00:13:31]} {[%emt 00:00:51]} 59. Kd2 {[%clk
00:00:12]} {[%emt 00:00:06]} Ke4 {[%clk 00:13:27]} {[%emt 00:00:09]} 60. Ke2
{[%clk 00:00:08]} {[%emt 00:00:10]} Rb2+ {[%clk 00:11:56]} {[%emt 00:01:35]} 61.
Kf1 {[%clk 00:00:07]} {[%emt 00:00:06]} Rd2 {[%clk 00:11:45]} {[%emt 00:00:15]}
62. Ke1 {[%clk 00:00:09]} {[%emt 00:00:04]} Rd5 {[%clk 00:11:48]} {[%emt
00:00:02]} 0-1

[Event "Open NK Rapid 2025 bord 26-50"]
[Site "Helmond, Netherlands"]
[Date "2025.05.03"]
[Round "8.2"]
[White "Taams, Lisanne"]
[Black "De Wit, Evan"]
[Result "0-1"]
[TimeControl "15 min +5 sec increment"]
[WhiteFideId "1055852"]
[BlackFideId "1096389"]
[WhiteElo "2078"]
[BlackElo "1917"]

1. Nf3 {[%clk 00:15:07]} {[%emt 00:00:03]} Nf6 {[%clk 00:15:08]} {[%emt
00:00:02]} 2. c4 {[%clk 00:15:11]} {[%emt 00:00:01]} g6 {[%clk 00:15:07]}
{[%emt 00:00:06]} 3. Nc3 {[%clk 00:15:15]} {[%emt 00:00:02]} Bg7 {[%clk
00:14:55]} {[%emt 00:00:17]} 4. e4 {[%clk 00:15:19]} {[%emt 00:00:01]} d6
{[%clk 00:14:58]} {[%emt 00:00:03]} 5. Be2 {[%clk 00:15:22]} {[%emt 00:00:01]}
e5 {[%clk 00:14:59]} {[%emt 00:00:04]} 6. d4 {[%clk 00:15:18]} {[%emt
00:00:09]} Nbd7 {[%clk 00:14:32]} {[%emt 00:00:33]} 7. dxe5 {[%clk 00:14:52]}
{[%emt 00:00:30]} Nxe5 {[%clk 00:14:16]} {[%emt 00:00:21]} 8. Nxe5 {[%clk
00:14:52]} {[%emt 00:00:06]} dxe5 {[%clk 00:14:19]} {[%emt 00:00:01]} 9. Qxd8+
{[%clk 00:14:54]} {[%emt 00:00:03]} Kxd8 {[%clk 00:14:23]} {[%emt 00:00:02]} 10.
Bg5 {[%clk 00:14:52]} {[%emt 00:00:06]} h6 {[%clk 00:13:21]} {[%emt 00:01:07]}
11. O-O-O+ {[%clk 00:14:40]} {[%emt 00:00:17]} Ke8 {[%clk 00:13:16]} {[%emt
00:00:10]} 12. Nb5 {[%clk 00:12:43]} {[%emt 00:02:02]} hxg5 {[%clk 00:12:08]}
{[%emt 00:01:12]} 13. Nxc7+ {[%clk 00:12:46]} {[%emt 00:00:03]} Ke7 {[%clk
00:12:13]} 14. Nxa8 {[%clk 00:12:47]} {[%emt 00:00:05]} Nxe4 {[%clk 00:12:15]}
{[%emt 00:00:02]} 15. Rhf1 {[%clk 00:12:32]} {[%emt 00:00:19]} Rxh2 {[%clk
00:10:45]} {[%emt 00:01:36]} 16. Nc7 {[%clk 00:12:35]} {[%emt 00:00:02]} g4
{[%clk 00:10:01]} {[%emt 00:00:50]} 17. Nd5+ {[%clk 00:12:33]} {[%emt
00:00:06]} Ke8 {[%clk 00:09:00]} {[%emt 00:01:02]} 18. Nc7+ {[%clk 00:12:34]}
{[%emt 00:00:08]} Ke7 {[%clk 00:09:03]} {[%emt 00:00:02]} 19. Nd5+ {[%clk
00:12:38]} Ke8 {[%clk 00:09:08]} {[%emt 00:00:01]} 20. Ne3 {[%clk 00:12:01]}
{[%emt 00:00:42]} f5 {[%clk 00:07:57]} {[%emt 00:01:15]} 21. Bd3 {[%clk
00:10:47]} {[%emt 00:01:20]} Nc5 {[%clk 00:06:41]} {[%emt 00:01:21]} 22. Bc2
{[%clk 00:10:47]} {[%emt 00:00:04]} Kf7 {[%clk 00:05:50]} {[%emt 00:00:54]} 23.
Rd5 {[%clk 00:09:12]} {[%emt 00:01:43]} Ne6 {[%clk 00:04:56]} {[%emt 00:00:58]}
24. g3 {[%clk 00:07:59]} {[%emt 00:01:18]} Nd4 {[%clk 00:03:48]} {[%emt
00:01:14]} 25. Rd8 {[%clk 00:05:14]} {[%emt 00:02:49]} Be6 {[%clk 00:03:09]}
{[%emt 00:00:44]} 26. Nd5 {[%clk 00:05:06]} {[%emt 00:00:14]} Nc6 {[%clk
00:03:06]} {[%emt 00:00:07]} 27. Ra8 {[%clk 00:04:55]} {[%emt 00:00:16]} Bf8
{[%clk 00:02:34]} {[%emt 00:00:36]} 28. b4 {[%clk 00:04:07]} {[%emt 00:00:54]}
Nxb4 {[%clk 00:02:30]} {[%emt 00:00:09]} 29. Nxb4 {[%clk 00:03:53]} {[%emt
00:00:19]} Bxb4 {[%clk 00:02:18]} {[%emt 00:00:17]} 30. Rxa7 {[%clk 00:03:54]}
{[%emt 00:00:04]} Bxc4 {[%clk 00:01:49]} {[%emt 00:00:34]} 31. Rxb7+ {[%clk
00:03:57]} {[%emt 00:00:02]} Kf6 {[%clk 00:01:52]} {[%emt 00:00:02]} 32. Rd1
{[%clk 00:03:38]} {[%emt 00:00:24]} Ba3+ {[%clk 00:01:55]} {[%emt 00:00:02]} 33.
Kb1 {[%clk 00:03:30]} {[%emt 00:00:13]} Rxf2 {[%clk 00:01:58]} {[%emt
00:00:02]} 34. Ra7 {[%clk 00:03:19]} {[%emt 00:00:16]} Bf8 {[%clk 00:01:30]}
{[%emt 00:00:33]} 35. Rd8 {[%clk 00:03:01]} {[%emt 00:00:24]} Bh6 {[%clk
00:01:01]} {[%emt 00:00:33]} 36. Rd6+ {[%clk 00:02:52]} {[%emt 00:00:14]} Kg5
{[%clk 00:00:56]} {[%emt 00:00:11]} 37. Rc7 {[%clk 00:02:24]} {[%emt 00:00:32]}
Bb5 {[%clk 00:00:12]} {[%emt 00:00:49]} 38. Rc5 {[%clk 00:02:01]} {[%emt
00:00:29]} Be8 {[%clk 00:00:14]} {[%emt 00:00:02]} 39. Re6 {[%clk 00:01:13]}
{[%emt 00:00:53]} Bf7 {[%clk 00:00:14]} {[%emt 00:00:05]} 40. Rd6 {[%clk
00:00:38]} {[%emt 00:00:39]} e4 {[%clk 00:00:15]} {[%emt 00:00:05]} 41. Rd7
{[%clk 00:00:32]} {[%emt 00:00:11]} Be6 {[%clk 00:00:15]} {[%emt 00:00:05]} 42.
Rd1 {[%clk 00:00:22]} {[%emt 00:00:15]} e3 {[%clk 00:00:14]} {[%emt 00:00:07]}
43. Bd3 {[%clk 00:00:09]} {[%emt 00:00:17]} Kf6 {[%clk 00:00:15]} {[%emt
00:00:04]} 44. Re1 {[%clk 00:00:10]} {[%emt 00:00:04]} Bxa2+ {[%clk 00:00:16]}
{[%emt 00:00:04]} 45. Ka1 {[%clk 00:00:09]} {[%emt 00:00:06]} Be6 {[%clk
00:00:19]} {[%emt 00:00:02]} 46. Rc6 {[%clk 00:00:12]} {[%emt 00:00:02]} Ke5
{[%clk 00:00:21]} {[%emt 00:00:03]} 47. Kb1 {[%clk 00:00:09]} {[%emt 00:00:08]}
Rd2 {[%clk 00:00:24]} {[%emt 00:00:02]} 48. Bc2 {[%clk 00:00:11]} {[%emt
00:00:03]} Bd5 {[%clk 00:00:27]} {[%emt 00:00:03]} 49. Rc8 {[%clk 00:00:14]}
{[%emt 00:00:02]} Bg5 {[%clk 00:00:29]} {[%emt 00:00:03]} 50. Re8+ {[%clk
00:00:17]} {[%emt 00:00:01]} Kd4 {[%clk 00:00:28]} {[%emt 00:00:06]} 51. Kc1
{[%clk 00:00:07]} {[%emt 00:00:15]} Kc3 {[%clk 00:00:27]} {[%emt 00:00:06]} 52.
Rc8+ {[%clk 00:00:06]} {[%emt 00:00:07]} Kd4 {[%clk 00:00:31]} {[%emt
00:00:01]} 53. Re8 {[%clk 00:00:09]} {[%emt 00:00:02]} e2 {[%clk 00:00:28]}
{[%emt 00:00:07]} 54. Kb2 {[%clk 00:00:13]} {[%emt 00:00:01]} Be4 {[%clk
00:00:25]} {[%emt 00:00:08]} 55. Rc8 {[%clk 00:00:10]} {[%emt 00:00:08]} Ke3
{[%clk 00:00:21]} {[%emt 00:00:09]} 56. Kc1 {[%clk 00:00:07]} {[%emt 00:00:08]}
Kf2 {[%clk 00:00:23]} {[%emt 00:00:04]} 57. Rh1 {[%clk 00:00:07]} {[%emt
00:00:05]} e1=Q+ {[%clk 00:00:21]} {[%emt 00:00:06]} 0-1